bitfinex/quotes_BTCUSD_20240826
["timestamp","ask_amount","ask_price","bid_price","bid_amount"]
[1724711865714,1.90365712,63173.0,63172.0,4.41e-06]
[1724711866117,1.92846365,63173.0,63172.0,4.41e-06]
[1724711872980,1.92846365,63173.0,63172.0,0.07660441]
[1724711873226,1.90365712,63173.0,63172.0,0.07660441]
[1724711874539,1.79258196,63173.0,63172.0,0.07660441]
[1724711874904,1.62904661,63173.0,63172.0,0.07660441]
[1724711876346,1.94088401,63173.0,63172.0,0.07660441]
[1724711877411,1.79881758,63173.0,63172.0,0.07660441]
[1724711878333,1.79972398,63173.0,63172.0,0.07660441]
[1724711880551,1.86102398,63173.0,63172.0,4.41e-06]
[1724711881748,1.79972398,63173.0,63172.0,4.41e-06]
[1724711886516,1.79972398,63173.0,63172.0,0.14150441]
[1724711890231,1.06654398,63173.0,63172.0,0.14150441]
[1724711890436,0.76010975,63173.0,63172.0,0.14150441]
[1724711890626,1.07669975,63173.0,63172.0,0.14150441]
[1724711892226,1.07669975,63173.0,63172.0,4.41e-06]
[1724711892738,1.38313398,63173.0,63172.0,4.41e-06]
[1724711893562,1.07669975,63173.0,63172.0,4.41e-06]
[1724711894386,1.07832484,63173.0,63172.0,4.41e-06]
[1724711895654,1.39491484,63173.0,63172.0,4.41e-06]
[1724711895860,1.70313168,63173.0,63172.0,4.41e-06]
[1724711899199,1.70246922,63173.0,63172.0,4.41e-06]
[1724711903587,0.59440422,63173.0,63172.0,0.30460141]
[1724711903752,0.26176187,63173.0,63172.0,0.14630441]
[1724711904137,0.26176187,63173.0,63172.0,0.30460141]
[1724711904337,0.36833239,63173.0,63172.0,0.62119641]
[1724711904534,0.3445932,63173.0,63172.0,0.62119641]
[1724711904759,0.3495932,63173.0,63172.0,0.62119641]
[1724711905187,0.3445932,63173.0,63172.0,0.30460141]
[1724711905393,0.3445932,63173.0,63172.0,0.14630441]
[1724711905595,0.3305932,63173.0,63172.0,0.14630441]
[1724711905766,0.3405932,63173.0,63172.0,0.14630441]
[1724711906151,0.3305932,63173.0,63172.0,0.14630441]
[1724711906581,0.0059064,63173.0,63172.0,0.15243781]
[1724711906765,0.0079064,63173.0,63172.0,0.15243781]
[1724711907100,0.0079064,63173.0,63172.0,0.14630441]
[1724711907417,0.07899134,63173.0,63172.0,0.14630441]
[1724711907627,0.23528634,63173.0,63172.0,0.14630441]
[1724711908072,0.23528634,63173.0,63172.0,0.14730441]
[1724711909993,0.07699134,63173.0,63172.0,0.14730441]
[1724711910194,0.0059064,63173.0,63172.0,0.14730441]
[1724711910530,0.1642014,63173.0,63172.0,0.14730441]
[1724711912452,0.21156949,63173.0,63172.0,0.14730441]
[1724711913287,0.21156046,63173.0,63172.0,0.14730441]
[1724711914089,0.52815046,63173.0,63172.0,0.14730441]
[1724711914467,0.52815046,63173.0,63172.0,0.08350441]
[1724711914667,0.55183,63173.0,63172.0,0.08350441]
[1724711916055,0.4807914,63173.0,63172.0,0.08350441]
[1724711918999,0.7973814,63173.0,63172.0,0.08350441]
[1724711919137,0.7973814,63173.0,63172.0,0.00100441]
[1724711919346,1.02959147,63173.0,63172.0,0.00100441]
[1724711919559,1.48878147,63173.0,63172.0,0.00100441]
[1724711919776,1.60717913,63173.0,63172.0,0.00100441]
[1724711919996,1.48878147,63173.0,63172.0,0.00100441]
[1724711920778,1.59985663,63173.0,63172.0,0.00100441]
[1724711923090,1.59676665,63173.0,63172.0,0.00100441]
[1724711927673,1.59663762,63173.0,63172.0,0.00100441]
[1724711931040,1.52003762,63173.0,63172.0,0.00100441]
[1724711931253,1.45403762,63173.0,63172.0,0.00100441]
[1724711933778,1.47884191,63173.0,63172.0,0.00100441]
[1724711936224,1.45403762,63173.0,63172.0,0.00100441]
[1724711937224,1.34296246,63173.0,63172.0,0.00100441]
[1724711937429,1.02556596,63173.0,63172.0,0.00100441]
[1724711938054,1.02556596,63173.0,63172.0,0.14540441]
[1724711938055,0.70897596,63173.0,63172.0,0.14540441]
[1724711939715,0.70897596,63173.0,63172.0,0.08160441]
[1724711940693,1.02556596,63173.0,63172.0,0.08160441]
[1724711941092,1.02661949,63173.0,63172.0,0.08160441]
[1724711942052,1.02661949,63173.0,63172.0,0.00100441]
[1724711942197,1.13769465,63173.0,63172.0,0.00100441]
[1724711942627,1.21669465,63173.0,63172.0,0.00100441]
[1724711942827,1.28309465,63173.0,63172.0,0.00100441]
[1724711943629,1.59968465,63173.0,63172.0,0.00100441]
[1724711943834,1.20409465,63173.0,63172.0,0.00100441]
[1724711944156,1.84687187,63173.0,63172.0,0.00100441]
[1724711945557,1.8407659,63173.0,63172.0,0.00100441]
[1724711945931,1.9197659,63173.0,63172.0,0.00100441]
[1724711948301,2.39253391,63173.0,63172.0,0.00100441]
[1724711948714,2.39453391,63173.0,63172.0,0.00100441]
[1724711948931,2.39453391,63173.0,63172.0,1.602e-05]
[1724711949131,1.108082,63172.0,63171.0,0.00864]
[1724711949367,1.95687935,63172.0,63171.0,0.00864]
[1724711949737,2.27347435,63172.0,63171.0,0.00864]
[1724711950316,2.29647435,63172.0,63171.0,0.00864]
[1724711950494,2.28247435,63172.0,63171.0,0.00864]
[1724711952180,2.27347435,63172.0,63171.0,0.00864]
[1724711952553,2.45796161,63172.0,63171.0,0.00864]
[1724711954513,2.29847435,63172.0,63171.0,0.00864]
[1724711957244,2.45796161,63172.0,63171.0,0.00864]
[1724711957446,2.29847435,63172.0,63171.0,0.00864]
[1724711958835,2.29847435,63172.0,63171.0,0.00017402]
[1724711962298,2.45796161,63172.0,63171.0,0.00017402]
[1724711963139,2.29847435,63172.0,63171.0,0.00017402]
[1724711963322,2.45796161,63172.0,63171.0,0.00017402]
[1724711964123,2.29847435,63172.0,63171.0,0.00017402]
[1724711964385,2.45796161,63172.0,63171.0,0.00017402]
[1724711964559,2.55796161,63172.0,63171.0,0.00017402]
[1724711964739,2.39847435,63172.0,63171.0,0.00017402]
[1724711965615,2.87320103,63172.0,63171.0,0.00017402]
[1724711965834,2.87320103,63172.0,63166.0,0.00824]
[1724711965835,1.67856916,63167.0,63166.0,0.00824]
[1724711966034,2.50706651,63167.0,63166.0,0.00824]
[1724711966238,2.82368751,63167.0,63166.0,0.00824]
[1724711967301,2.83768751,63167.0,63166.0,0.00824]
[1724711967514,2.99381919,63167.0,63166.0,0.00824]
[1724711968259,2.97981919,63167.0,63166.0,0.00824]
[1724711968660,2.83768751,63167.0,63166.0,0.00824]
[1724711968971,2.82368751,63167.0,63166.0,0.00824]
[1724711969180,2.83768751,63167.0,63166.0,0.00824]
[1724711969380,2.83423503,63167.0,63166.0,0.00824]
[1724711969804,2.82023503,63167.0,63166.0,0.00824]
[1724711969960,2.80623503,63167.0,63166.0,0.00824]
[1724711970161,2.83104657,63167.0,63166.0,0.00824]
[1724711970364,2.84504657,63167.0,63166.0,0.00824]
[1724711971188,3.00117825,63167.0,63166.0,0.00824]
[1724711971589,3.01517825,63167.0,63166.0,0.00824]
[1724711971943,3.00117825,63167.0,63166.0,0.00824]
[1724711972290,3.01517825,63167.0,63166.0,0.00824]
[1724711972495,3.00117825,63167.0,63166.0,0.00824]
[1724711972923,3.01517825,63167.0,63166.0,0.00824]
[1724711973478,3.01517825,63167.0,63163.0,0.00824]
[1724711973479,0.002,63164.0,63163.0,0.00824]
[1724711973690,0.002,63164.0,63157.0,0.00012]
[1724711973691,0.301033,63158.0,63157.0,0.00012]
[1724711973901,1.70289394,63158.0,63157.0,0.00012]
[1724711974111,2.45872478,63158.0,63157.0,0.00012]
[1724711974986,2.77539078,63158.0,63157.0,0.00012]
[1724711975471,2.94814148,63158.0,63157.0,0.00012]
[1724711975679,2.96214148,63158.0,63157.0,0.00012]
[1724711975850,2.80339078,63158.0,63157.0,0.00012]
[1724711976064,2.94552246,63158.0,63157.0,0.00012]
[1724711976468,2.78939078,63158.0,63157.0,0.00012]
[1724711976809,2.80339078,63158.0,63157.0,0.00012]
[1724711977010,2.20190629,63158.0,63157.0,0.00012]
[1724711977170,2.03600474,63158.0,63157.0,0.00012]
[1724711977374,2.0608192,63158.0,63157.0,0.00012]
[1724711978035,2.3715231,63158.0,63157.0,0.00012]
[1724711978189,2.6881891,63158.0,63157.0,0.00012]
[1724711978390,2.8294891,63158.0,63157.0,0.00012]
[1724711978603,2.98562078,63158.0,63157.0,0.00012]
[1724711979257,0.002,63152.0,63151.0,0.0004]
[1724711979381,2.49386445,63152.0,63151.0,1e-06]
[1724711979585,3.09353564,63152.0,63151.0,1e-06]
[1724711979786,3.11653564,63152.0,63151.0,1e-06]
[1724711980217,3.27266732,63152.0,63151.0,1e-06]
[1724711980457,3.43133969,63152.0,63151.0,1e-06]
[1724711980715,3.4868596,63152.0,63151.0,1e-06]
[1724711981093,3.33072792,63152.0,63151.0,1e-06]
[1724711981304,1.74402,63145.0,63135.0,0.46876099]
[1724711981518,2.39085782,63145.0,63135.0,0.46876099]
[1724711981705,2.27281502,63145.0,63131.0,0.0004]
[1724711981858,2.51385782,63145.0,63131.0,0.0004]
[1724711982061,2.53867773,63145.0,63131.0,0.0004]
[1724711982293,2.39763493,63145.0,63131.0,0.0004]
[1724711982462,2.38681502,63145.0,63144.0,2.064e-05]
[1724711982669,2.66098979,63145.0,63144.0,2.064e-05]
[1724711983051,2.67498979,63145.0,63144.0,2.064e-05]
[1724711983506,2.66543581,63145.0,63144.0,2.064e-05]
[1724711985451,2.53175902,63145.0,63144.0,2.064e-05]
[1724711986060,2.39078369,63145.0,63144.0,2.064e-05]
[1724711986277,2.80374678,63145.0,63144.0,2.064e-05]
[1724711987311,2.80355625,63145.0,63144.0,2.064e-05]
[1724711987517,1.67963163,63138.0,63131.0,0.0004]
[1724711987730,2.13953288,63138.0,63131.0,0.0004]
[1724711988100,2.45280549,63138.0,63131.0,0.0004]
[1724711988979,2.47762739,63138.0,63131.0,0.0004]
[1724711989179,2.49962739,63138.0,63131.0,0.0004]
[1724711990392,2.49962739,63138.0,63137.0,0.00068101]
[1724711991676,2.47480549,63138.0,63137.0,0.00068101]
[1724711992473,2.59217892,63138.0,63137.0,0.00068101]
[1724711992675,2.33350549,63138.0,63137.0,0.14088101]
[1724711992939,2.33214237,63138.0,63137.0,0.00068101]
[1724711993375,2.32414237,63138.0,63137.0,0.00068101]
[1724711993581,2.45545676,63138.0,63137.0,0.00068101]
[1724711993981,2.61158844,63138.0,63137.0,0.00068101]
[1724711994232,2.49427405,63138.0,63137.0,0.00068101]
[1724711994413,2.48027405,63138.0,63137.0,0.00068101]
[1724711994629,2.49427405,63138.0,63137.0,0.00068101]
[1724711994792,2.48027405,63138.0,63137.0,0.00068101]
[1724711994992,2.46627405,63138.0,63137.0,0.00068101]
[1724711995191,2.48027405,63138.0,63137.0,0.00068101]
[1724711995399,2.49427405,63138.0,63137.0,0.00068101]
[1724711995601,2.22706721,63138.0,63137.0,0.00068101]
[1724711995939,2.37193965,63138.0,63137.0,0.00068101]
[1724711996076,2.35793965,63138.0,63137.0,0.00068101]
[1724711996274,2.38593965,63138.0,63137.0,0.00068101]
[1724711996681,2.40248758,63138.0,63137.0,0.00068101]
[1724711996884,2.3636903,63138.0,63137.0,0.00068101]
[1724711997466,0.16022447,63125.0,63121.0,0.0752]
[1724711997683,1.10803901,63125.0,63121.0,0.0752]
[1724711997925,1.79480164,63125.0,63121.0,0.0752]
[1724711998130,2.11163264,63125.0,63121.0,0.0752]
[1724711998530,2.15852005,63125.0,63121.0,0.0752]
[1724711999108,2.18652005,63125.0,63121.0,0.0752]
[1724711999315,2.17252005,63125.0,63117.0,0.0752]
[1724711999511,2.18783264,63125.0,63117.0,0.0752]
[1724711999727,2.18783264,63125.0,63108.0,0.00824]
[1724711999728,1.74482547,63109.0,63108.0,0.00824]
[1724711999934,1.86320024,63109.0,63108.0,0.00824]
[1724712000144,1.96058207,63109.0,63108.0,0.00824]
[1724712000724,2.65833904,63109.0,63108.0,0.00824]
[1724712000926,0.79410147,63108.0,63099.0,0.0752]
[1724712001132,0.79410147,63108.0,63093.0,0.00824]
[1724712001133,1.46000808,63108.0,63094.0,0.0752]
[1724712001340,2.61053486,63108.0,63107.0,1e-06]
[1724712001504,2.76666654,63108.0,63107.0,1e-06]
[1724712001715,2.41069589,63108.0,63107.0,1e-06]
[1724712002278,2.08666275,63108.0,63107.0,1e-06]
[1724712002485,2.03986849,63108.0,63107.0,1e-06]
[1724712002692,2.08666381,63108.0,63107.0,1e-06]
[1724712003122,2.10966381,63108.0,63107.0,1e-06]
[1724712003381,2.07686849,63108.0,63107.0,1e-06]
[1724712005920,2.077776,63108.0,63107.0,1e-06]
[1724712006116,2.10261166,63108.0,63107.0,1e-06]
[1724712006958,2.49572866,63108.0,63107.0,1e-06]
[1724712007576,2.54252398,63108.0,63107.0,1e-06]
[1724712007782,2.54252398,63108.0,63094.0,0.0752]
[1724712007783,1.426419,63095.0,63094.0,0.0752]
[1724712008029,1.80471906,63095.0,63094.0,0.0752]
[1724712008454,2.12170106,63095.0,63094.0,0.0752]
[1724712009045,2.14170106,63095.0,63094.0,0.0752]
[1724712009782,1.82471906,63095.0,63094.0,0.0752]
[1724712009982,1.546419,63095.0,63094.0,0.0752]
[1724712010398,1.82471906,63095.0,63094.0,0.0752]
[1724712011002,2.29787907,63095.0,63094.0,0.0752]
[1724712011907,2.314427,63095.0,63094.0,0.0752]
[1724712012500,0.158493,63094.0,63093.0,0.00824]
[1724712012737,1.99960601,63094.0,63093.0,0.00824]
[1724712014322,2.01160601,63094.0,63093.0,0.00824]
[1724712014527,2.01760601,63094.0,63093.0,0.00824]
[1724712015456,2.01760601,63094.0,63093.0,0.14884]
[1724712015457,1.544441,63094.0,63093.0,0.14884]
[1724712017034,1.544441,63094.0,63093.0,0.1532606]
[1724712018075,1.227454,63094.0,63093.0,0.1532606]
[1724712022608,1.25229105,63094.0,63093.0,0.1532606]
[1724712023903,0.04283705,63094.0,63093.0,0.1532606]
[1724712024122,0.018,63094.0,63093.0,0.1532606]
[1724712024760,0.164493,63094.0,63093.0,0.1532606]
[1724712024951,0.176493,63094.0,63093.0,0.1532606]
[1724712025160,0.49348,63094.0,63093.0,0.1532606]
[1724712025470,1.109454,63094.0,63093.0,0.1532606]
[1724712025646,1.115454,63094.0,63093.0,0.1532606]
[1724712025841,1.121454,63094.0,63093.0,0.1532606]
[1724712026559,0.804467,63094.0,63093.0,0.1532606]
[1724712026939,0.798467,63094.0,63093.0,0.1532606]
[1724712027095,0.799467,63094.0,63093.0,0.1532606]
[1724712027304,0.793467,63094.0,63093.0,0.1532606]
[1724712027496,1.121454,63094.0,63093.0,0.1532606]
[1724712027701,1.120454,63094.0,63093.0,0.1532606]
[1724712028038,1.125454,63094.0,63093.0,0.1532606]
[1724712029077,1.12526328,63094.0,63093.0,0.1532606]
[1724712041200,1.12617079,63094.0,63093.0,0.1532606]
[1724712041401,1.12617079,63094.0,63093.0,0.0924606]
[1724712041606,2.00046279,63094.0,63093.0,0.0126606]
[1724712041755,1.90705883,63094.0,63093.0,0.0126606]
[1724712041956,1.31177177,63094.0,63093.0,0.0126606]
[1724712042208,1.31177177,63094.0,63093.0,0.1580606]
[1724712042353,1.40580038,63094.0,63093.0,0.1580606]
[1724712042553,1.19673028,63094.0,63093.0,0.1580606]
[1724712043537,1.40815539,63094.0,63093.0,0.1580606]
[1724712044424,1.43161316,63094.0,63093.0,0.1580606]
[1724712045737,1.31407739,63094.0,63093.0,0.1580606]
[1724712047350,0.99709039,63094.0,63093.0,0.1580606]
[1724712048028,0.99742887,63094.0,63093.0,0.1580606]
[1724712048793,0.99742887,63094.0,63093.0,0.0931606]
[1724712049625,1.31441587,63094.0,63093.0,0.0931606]
[1724712049828,0.99742887,63094.0,63093.0,0.0126606]
[1724712050247,1.31441587,63094.0,63093.0,0.0126606]
[1724712050448,0.99742887,63094.0,63093.0,0.0126606]
[1724712052166,1.31441587,63094.0,63093.0,0.0126606]
[1724712052770,1.61911137,63094.0,63093.0,0.0126606]
[1724712052970,1.73151426,63094.0,63093.0,0.0126606]
[1724712053435,1.84283573,63094.0,63093.0,0.0126606]
[1724712053802,1.76453573,63094.0,63093.0,0.0126606]
[1724712054002,1.65321426,63094.0,63093.0,0.0126606]
[1724712054207,1.59301426,63094.0,63093.0,0.0126606]
[1724712055201,1.48068357,63094.0,63093.0,0.0945606]
[1724712055626,1.48068357,63094.0,63093.0,0.0126606]
[1724712055805,1.67261681,63094.0,63093.0,0.0126606]
[1724712056791,1.82879482,63094.0,63093.0,0.0126606]
[1724712056992,2.14578182,63094.0,63093.0,0.0126606]
[1724712057394,2.13814286,63094.0,63093.0,0.0126606]
[1724712059003,2.19834286,63094.0,63093.0,0.0126606]
[1724712061031,2.30015233,63094.0,63093.0,0.00266435]
[1724712061409,2.32315233,63094.0,63093.0,0.00266435]
[1724712061689,2.64013933,63094.0,63093.0,3.5e-07]
[1724712061954,2.62913933,63094.0,63093.0,3.5e-07]
[1724712062166,2.78527101,63094.0,63093.0,3.5e-07]
[1724712062357,2.79227101,63094.0,63093.0,3.5e-07]
[1724712062595,3.21246139,63094.0,63093.0,3.5e-07]
[1724712062851,3.05632971,63094.0,63093.0,3.5e-07]
[1724712063092,3.27312498,63094.0,63093.0,3.5e-07]
[1724712063284,3.32869216,63094.0,63093.0,3.5e-07]
[1724712063419,3.33069216,63094.0,63093.0,3.5e-07]
[1724712063840,3.34469216,63094.0,63093.0,3.5e-07]
[1724712064038,3.33069216,63094.0,63093.0,3.5e-07]
[1724712064223,3.48682384,63094.0,63093.0,3.5e-07]
[1724712064423,3.50082384,63094.0,63093.0,3.5e-07]
[1724712065413,3.48682384,63094.0,63093.0,0.00082535]
[1724712065557,3.50082384,63094.0,63093.0,0.00082535]
[1724712067145,3.50082384,63094.0,63093.0,0.00011032]
[1724712067351,3.5256638,63094.0,63093.0,0.00011032]
[1724712067923,3.8426508,63094.0,63093.0,3.2e-07]
[1724712068124,3.5116638,63094.0,63093.0,3.2e-07]
[1724712068326,3.34153212,63094.0,63093.0,3.2e-07]
[1724712068555,3.29996494,63094.0,63093.0,3.2e-07]
[1724712068773,3.61695194,63094.0,63093.0,3.2e-07]
[1724712068985,1.74529247,63092.0,63091.0,1e-06]
[1724712069187,1.74529247,63092.0,63088.0,0.1205]
[1724712069188,0.30051547,63089.0,63088.0,4.7e-07]
[1724712069368,1.39834339,63089.0,63088.0,4.7e-07]
[1724712069573,2.62526054,63089.0,63088.0,4.7e-07]
[1724712069775,2.94227254,63089.0,63088.0,4.7e-07]
[1724712070040,2.75945584,63089.0,63088.0,4.7e-07]
[1724712070624,2.73645584,63089.0,63088.0,4.7e-07]
[1724712070839,2.75045584,63089.0,63088.0,4.7e-07]
[1724712071035,2.73645584,63089.0,63088.0,4.7e-07]
[1724712071421,2.75045584,63089.0,63088.0,4.7e-07]
[1724712071598,2.73645584,63089.0,63088.0,4.7e-07]
[1724712072221,2.75045584,63089.0,63088.0,4.7e-07]
[1724712072454,2.76700377,63089.0,63088.0,4.7e-07]
[1724712072617,2.77600377,63089.0,63088.0,4.7e-07]
[1724712073022,2.79000377,63089.0,63088.0,4.7e-07]
[1724712073593,2.76700377,63089.0,63088.0,4.7e-07]
[1724712073932,2.38449177,63089.0,63088.0,4.7e-07]
[1724712074331,2.3836823,63089.0,63088.0,4.7e-07]
[1724712075116,2.27198375,63089.0,63088.0,4.7e-07]
[1724712075315,2.13080115,63089.0,63088.0,4.7e-07]
[1724712077502,2.15564233,63089.0,63088.0,4.7e-07]
[1724712077701,2.31793237,63089.0,63088.0,4.7e-07]
[1724712077904,2.29312316,63089.0,63088.0,4.7e-07]
[1724712078202,2.29312316,63089.0,63088.0,0.00082447]
[1724712078404,2.31793811,63089.0,63088.0,0.00082447]
[1724712079286,2.54935468,63089.0,63088.0,0.00082447]
[1724712080045,2.54935468,63089.0,63088.0,0.000824]
[1724712081100,2.1458015,63089.0,63088.0,0.13717778]
[1724712081939,2.1318015,63089.0,63088.0,0.13717778]
[1724712082147,1.55861149,63089.0,63088.0,0.13717778]
[1724712082361,1.43404009,63089.0,63088.0,0.13717778]
[1724712082571,0.89113296,63089.0,63088.0,0.13717778]
[1724712082775,0.80633924,63089.0,63088.0,0.13717778]
[1724712083173,0.47532724,63089.0,63088.0,0.13717778]
[1724712083308,0.48932724,63089.0,63088.0,0.13717778]
[1724712083508,0.50332724,63089.0,63088.0,0.13717778]
[1724712083907,0.48932724,63089.0,63088.0,0.13717778]
[1724712084150,0.50332724,63089.0,63088.0,0.13717778]
[1724712084348,0.48932724,63089.0,63088.0,0.13717778]
[1724712084570,0.47532724,63089.0,63088.0,0.13717778]
[1724712084741,0.47632724,63089.0,63088.0,0.13717778]
[1724712085106,0.49032724,63089.0,63088.0,0.13717778]
[1724712085469,0.47632724,63089.0,63088.0,0.13717778]
[1724712085668,1.09590291,63089.0,63088.0,0.13717778]
[1724712085827,0.79633924,63089.0,63088.0,0.13717778]
[1724712086026,1.09591543,63089.0,63088.0,0.13717778]
[1724712086388,1.40892743,63089.0,63088.0,0.13717778]
[1724712086534,1.41592743,63089.0,63088.0,0.13717778]
[1724712086736,1.41792743,63089.0,63088.0,0.13717778]
[1724712086978,1.41592743,63089.0,63088.0,0.13717778]
[1724712087381,1.10591543,63089.0,63088.0,0.13717778]
[1724712087745,1.42292743,63089.0,63088.0,0.13717778]
[1724712088343,1.41592743,63089.0,63088.0,0.13717778]
[1724712088563,1.42292743,63089.0,63088.0,0.13717778]
[1724712089183,1.42207524,63089.0,63088.0,0.13717778]
[1724712090157,1.32796025,63089.0,63088.0,0.13717778]
[1724712090923,1.32886665,63089.0,63088.0,0.13717778]
[1724712092471,1.44651039,63089.0,63088.0,0.13717778]
[1724712092855,1.32886665,63089.0,63088.0,7.778e-05]
[1724712093056,1.47003913,63089.0,63088.0,7.778e-05]
[1724712093254,1.81186398,63089.0,63088.0,7.778e-05]
[1724712093460,2.08322727,63089.0,63088.0,7.778e-05]
[1724712094075,2.07882444,63089.0,63088.0,7.778e-05]
[1724712094247,1.93761925,63089.0,63088.0,7.778e-05]
[1724712097195,2.09379726,63089.0,63088.0,7.778e-05]
[1724712098970,2.09361486,63089.0,63088.0,7.778e-05]
[1724712099215,2.25256508,63089.0,63088.0,7.778e-05]
[1724712100227,2.24556508,63089.0,63088.0,7.778e-05]
[1724712100482,2.25956508,63089.0,63088.0,7.778e-05]
[1724712100734,2.25256508,63089.0,63088.0,7.778e-05]
[1724712101711,2.23856508,63089.0,63088.0,7.778e-05]
[1724712101914,2.25256508,63089.0,63088.0,7.778e-05]
[1724712102364,2.09361486,63089.0,63088.0,7.778e-05]
[1724712102564,2.10761486,63089.0,63088.0,7.778e-05]
[1724712102767,2.09361486,63089.0,63088.0,7.778e-05]
[1724712102969,2.11845634,63089.0,63088.0,7.778e-05]
[1724712103572,2.11362558,63089.0,63088.0,7.778e-05]
[1724712103985,2.09962558,63089.0,63088.0,7.778e-05]
[1724712104193,2.11362558,63089.0,63088.0,7.778e-05]
[1724712104364,2.17382558,63089.0,63088.0,7.778e-05]
[1724712104551,2.23592558,63089.0,63088.0,7.778e-05]
[1724712104751,2.24992558,63089.0,63088.0,7.778e-05]
[1724712104947,2.26392558,63089.0,63088.0,7.778e-05]
[1724712105410,2.36392558,63089.0,63088.0,7.778e-05]
[1724712106793,2.68093758,63089.0,63088.0,7.778e-05]
[1724712106991,2.36392558,63089.0,63088.0,7.778e-05]
[1724712107377,2.68093758,63089.0,63088.0,7.778e-05]
[1724712107988,2.65293758,63089.0,63088.0,7.778e-05]
[1724712108341,2.68093758,63089.0,63088.0,7.778e-05]
[1724712108952,2.68093758,63089.0,63087.0,0.00081469]
[1724712108953,1.109559,63088.0,63087.0,0.00081469]
[1724712109154,2.13724538,63088.0,63087.0,0.00081469]
[1724712109354,2.59056238,63088.0,63087.0,0.00081469]
[1724712109504,2.92412731,63088.0,63087.0,0.00081469]
[1724712109907,3.30019526,63088.0,63087.0,0.00081469]
[1724712110109,3.35578075,63088.0,63087.0,0.00081469]
[1724712110513,3.36978075,63088.0,63087.0,0.00081469]
[1724712110919,3.35578075,63088.0,63087.0,0.00081469]
[1724712111140,3.36978075,63088.0,63087.0,0.00081469]
[1724712112164,3.38378075,63088.0,63087.0,0.00081469]
[1724712112423,3.10360883,63088.0,63087.0,0.00081469]
[1724712112690,2.86960333,63088.0,63087.0,0.00081469]
[1724712112878,2.49700084,63088.0,63087.0,0.00081469]
[1724712113498,2.81401784,63088.0,63087.0,0.00081469]
[1724712114191,2.49700084,63088.0,63087.0,0.00081469]
[1724712114745,2.81401784,63088.0,63087.0,0.00081469]
[1724712117097,2.81401784,63088.0,63087.0,0.00010275]
[1724712117455,2.83885947,63088.0,63087.0,0.00010275]
[1724712117651,2.82871037,63088.0,63087.0,0.00010275]
[1724712119127,2.51169337,63088.0,63087.0,0.00010275]
[1724712119954,2.51169337,63088.0,63087.0,0.07680275]
[1724712121015,2.48685174,63088.0,63087.0,0.07680275]
[1724712121191,2.48606809,63088.0,63087.0,0.07680275]
[1724712123184,2.48606809,63088.0,63087.0,0.00010275]
[1724712124759,2.62936809,63088.0,63087.0,0.00010275]
[1724712125026,2.62936809,63088.0,63087.0,1.214e-05]
[1724712125532,2.94638509,63088.0,63087.0,1.214e-05]
[1724712125783,2.94783636,63088.0,63087.0,1.214e-05]
[1724712126510,2.94874276,63088.0,63087.0,1.214e-05]
[1724712128217,2.78178089,63088.0,63087.0,1.214e-05]
[1724712129980,2.32146389,63088.0,63087.0,1.214e-05]
[1724712130224,2.32146389,63088.0,63087.0,0.07941214]
[1724712130467,2.32095945,63088.0,63087.0,0.07941214]
[1724712132832,2.32095945,63088.0,63087.0,1.214e-05]
[1724712133048,1.426644,63085.0,63084.0,0.0794]
[1724712133213,2.11939511,63085.0,63084.0,0.0794]
[1724712133412,2.00799453,63085.0,63084.0,0.0794]
[1724712133614,2.11939511,63085.0,63084.0,0.0794]
[1724712134251,1.426734,63081.0,63080.0,0.0658]
[1724712134448,2.11948511,63081.0,63080.0,0.0658]
[1724712134827,2.11948511,63081.0,63080.0,0.1452]
[1724712135131,1.66294743,63081.0,63080.0,0.1452]
[1724712135306,2.29293221,63081.0,63080.0,0.1452]
[1724712135918,2.13392589,63081.0,63080.0,0.1452]
[1724712136141,0.317082,63075.0,63073.0,0.00843053]
[1724712136344,0.317082,63075.0,63073.0,0.00824]
[1724712136345,0.62933287,63074.0,63073.0,0.00824]
[1724712136551,1.26350687,63074.0,63073.0,0.00824]
[1724712136757,1.26350687,63074.0,63073.0,0.15344]
[1724712136964,1.58040309,63074.0,63073.0,0.15344]
[1724712137169,1.7016324,63074.0,63073.0,0.15344]
[1724712137573,1.7136324,63074.0,63073.0,0.15344]
[1724712137775,1.7256324,63074.0,63073.0,0.15344]
[1724712139878,1.72417088,63074.0,63073.0,0.15344]
[1724712144782,1.72447852,63074.0,63073.0,0.15344]
[1724712146254,1.88360562,63074.0,63073.0,0.15344]
[1724712146653,1.72447852,63074.0,63073.0,0.15344]
[1724712147238,1.88360562,63074.0,63073.0,0.15344]
[1724712147645,1.72447852,63074.0,63073.0,0.15344]
[1724712148349,1.88360562,63074.0,63073.0,0.15344]
[1724712148555,1.72447852,63074.0,63073.0,0.15344]
[1724712149200,1.88360562,63074.0,63073.0,0.15344]
[1724712149397,1.27001743,63074.0,63073.0,0.15344]
[1724712149597,1.87994674,63074.0,63073.0,0.15344]
[1724712151138,2.19703374,63074.0,63073.0,0.15344]
[1724712151763,2.19703374,63074.0,63073.0,0.08764]
[1724712151960,2.19703374,63074.0,63073.0,0.00824]
[1724712152163,2.67736511,63074.0,63073.0,0.00824]
[1724712152740,2.66536511,63074.0,63073.0,0.00824]
[1724712153081,2.67836511,63074.0,63073.0,0.00824]
[1724712153510,2.66536511,63074.0,63073.0,0.00824]
[1724712153716,2.65336511,63074.0,63073.0,0.00824]
[1724712153872,2.66736511,63074.0,63073.0,0.00824]
[1724712154076,2.68036511,63074.0,63073.0,0.00824]
[1724712154277,2.66736511,63074.0,63073.0,0.00824]
[1724712154689,2.68136511,63074.0,63073.0,0.00824]
[1724712155514,2.65336511,63074.0,63073.0,0.00824]
[1724712155742,2.66736511,63074.0,63073.0,0.00824]
[1724712156141,2.66736511,63074.0,63073.0,0.0014]
[1724712156423,2.65336511,63074.0,63073.0,0.0009]
[1724712156626,2.66736511,63074.0,63073.0,0.0009]
[1724712156851,2.68136511,63074.0,63073.0,0.0009]
[1724712157075,2.65336511,63074.0,63073.0,0.0009]
[1724712157723,2.74366511,63074.0,63073.0,0.0009]
[1724712157928,2.72966511,63074.0,63073.0,0.0009]
[1724712158291,2.74366511,63074.0,63073.0,0.0009]
[1724712158564,2.75766511,63074.0,63073.0,0.0009]
[1724712158982,2.74366511,63074.0,63073.0,0.0009]
[1724712159446,2.75766511,63074.0,63073.0,0.0009]
[1724712159873,2.74366511,63074.0,63073.0,0.0009]
[1724712160197,2.75766511,63074.0,63073.0,0.0009]
[1724712162518,2.91379679,63074.0,63073.0,0.0009]
[1724712162924,0.16035747,63072.0,63071.0,0.0004]
[1724712163144,0.99402939,63072.0,63071.0,0.0004]
[1724712163517,0.99402939,63072.0,63065.0,2e-07]
[1724712163518,2.00281405,63066.0,63065.0,2e-07]
[1724712163692,2.64322006,63066.0,63065.0,2e-07]
[1724712163866,3.02175229,63066.0,63065.0,2e-07]
[1724712164068,1.490088,63061.0,63060.0,0.00185232]
[1724712164290,2.38679882,63061.0,63060.0,0.00185232]
[1724712164526,2.54556603,63061.0,63060.0,0.00185232]
[1724712164927,3.1806815,63061.0,63060.0,3.2e-07]